bitfinex/quotes_SOLUSD_20250625
["timestamp","ask_amount","ask_price","bid_price","bid_amount"]
[1750862660648,14.25325201,145.8,145.75,6.86106346]
[1750862660952,14.25325201,145.8,145.76,6.47325201]
[1750862662157,32.85793829,145.82,145.77,6.47325201]
[1750862662449,6.47325201,145.82,145.75,6.86106346]
[1750862662625,6.47325201,145.82,145.78,6.47325201]
[1750862663326,6.47325201,145.82,145.77,6.47325201]
[1750862663638,6.47325201,145.82,145.78,6.47325201]
[1750862663829,33.99135201,145.83,145.79,6.47325201]
[1750862664029,6.47325201,145.84,145.8,13.33196257]
[1750862664535,28.49529662,145.85,145.8,13.33196257]
[1750862664536,6.47325201,145.85,145.8,13.33196257]
[1750862664738,34.9680378,145.85,145.8,13.33196257]
[1750862664914,39.32961192,145.85,145.8,13.33196257]
[1750862665449,32.47325201,145.85,145.8,13.33196257]
[1750862665651,32.85642932,145.85,145.8,13.33196257]
[1750862665949,6.47325201,145.84,145.8,13.33196257]
[1750862666525,26.0,145.85,145.8,13.33196257]
[1750862666826,6.47325201,145.84,145.8,13.33196257]
[1750862667026,6.47325201,145.86,145.82,6.47325201]
[1750862667241,6.47325201,145.86,145.81,6.47325201]
[1750862667546,6.47325201,145.85,145.81,6.47325201]
[1750862668251,6.47325201,145.86,145.82,6.85776985]
[1750862669035,6.47325201,145.85,145.82,6.85776985]
[1750862669839,173.8,145.87,145.82,13.33102186]
[1750862670034,180.27325201,145.87,145.82,13.33102186]
[1750862670233,154.27325201,145.87,145.82,6.85776985]
[1750862670432,154.27325201,145.87,145.83,6.47325201]
[1750862670642,154.27325201,145.87,145.82,6.85776985]
[1750862670858,154.27325201,145.87,145.82,13.33102186]
[1750862672862,154.27325201,145.87,145.83,6.47325201]
[1750862673061,6.47325201,145.86,145.82,13.33102186]
[1750862674154,154.27325201,145.87,145.82,13.33102186]
[1750862674532,6.47325201,145.86,145.82,6.85776985]
[1750862674756,6.47325201,145.85,145.79,43.14772545]
[1750862674956,6.47325201,145.85,145.8,6.47325201]
[1750862675390,6.47325201,145.85,145.81,6.47325201]
[1750862675951,13.32963329,145.85,145.81,13.33119648]
[1750862676257,6.47325201,145.85,145.81,13.33119648]
[1750862677271,6.85637028,145.85,145.77,6.86012211]
[1750862677468,6.85637028,145.85,145.79,6.47325201]
[1750862677643,6.85637028,145.85,145.81,6.47325201]
[1750862677644,6.47325201,145.85,145.81,6.47325201]
[1750862678361,6.47325201,145.85,145.81,13.33136745]
[1750862678565,6.47325201,145.85,145.81,6.85811544]
[1750862678769,6.47325201,145.85,145.81,13.33136745]
[1750862679769,13.32973343,145.85,145.81,6.47325201]
[1750862680063,13.32973343,145.85,145.77,24.01042738]
[1750862680238,32.85606302,145.86,145.81,6.47325201]
[1750862680438,32.47325201,145.86,145.82,6.47325201]
[1750862680673,147.8,145.87,145.84,6.47325201]
[1750862681341,147.8,145.87,145.85,6.47325201]
[1750862681542,40.15325201,145.89,145.85,6.47325201]
[1750862681846,186.3979,145.91,145.78,19.33561401]
[1750862681847,147.8,145.91,145.88,6.47325201]
[1750862682052,13.3255466,145.94,145.9,6.47325201]
[1750862682247,39.3255466,145.94,145.9,6.47325201]
[1750862682840,13.3255466,145.94,145.9,6.47325201]
[1750862683237,39.3255466,145.94,145.9,6.47325201]
[1750862683548,32.85229459,145.94,145.9,6.47325201]
[1750862683754,39.3255466,145.94,145.9,6.47325201]
[1750862684374,32.85229459,145.94,145.9,6.47325201]
[1750862684542,39.3255466,145.94,145.9,6.47325201]
[1750862684873,39.3255466,145.94,145.89,6.85435118]
[1750862684874,6.47325201,145.92,145.86,6.8558892]
[1750862685040,6.47325201,145.92,145.87,6.47325201]
[1750862685236,6.47325201,145.91,145.86,6.47325201]
[1750862685440,6.47325201,145.91,145.85,6.8561512]
[1750862685441,6.47325201,145.89,145.85,6.47325201]
[1750862685666,6.47325201,145.89,145.85,13.32959562]
[1750862685869,6.47325201,145.89,145.85,6.47325201]
[1750862686251,6.47325201,145.89,145.84,6.85666754]
[1750862686569,6.47325201,145.89,145.85,6.47325201]
[1750862687081,13.32794999,145.89,145.84,6.85666754]
[1750862687282,13.32794999,145.89,145.85,6.47325201]
[1750862688174,6.47325201,145.88,145.82,8.51937971]
[1750862688482,6.47325201,145.86,145.82,14.99263172]
[1750862689555,6.47325201,145.86,145.82,8.51937971]
[1750862689955,6.47325201,145.86,145.82,14.99263172]
[1750862691079,6.85494927,145.88,145.82,8.51937971]
[1750862691274,6.47325201,145.86,145.82,14.99263172]
[1750862693596,6.47325201,145.86,145.82,13.33073172]
[1750862694771,6.85591866,145.86,145.82,6.85747971]
[1750862694959,6.47325201,145.85,145.8,7.68]
[1750862695280,6.47325201,145.84,145.8,6.47325201]
[1750862695471,6.47325201,145.83,145.79,6.85897711]
[1750862696053,26.0,145.85,145.79,13.33222912]
[1750862696260,32.47325201,145.85,145.8,6.47325201]
[1750862696789,6.47325201,145.85,145.8,13.3315804]
[1750862697079,32.47325201,145.86,145.82,6.47325201]
[1750862697286,26.0,145.86,145.83,6.47325201]
[1750862697866,26.0,145.86,145.82,6.47325201]
[1750862698179,26.0,145.86,145.8,24.00510479]
[1750862698180,6.47325201,145.88,145.84,6.47325201]
[1750862698376,2.5020969,145.88,145.86,6.47325201]
[1750862698569,2.5020969,145.89,145.82,18.64964886]
[1750862698769,9.35617319,145.9,145.83,6.85729959]
[1750862698971,8.97534891,145.89,145.85,6.47325201]
[1750862699888,8.97534891,145.9,145.86,6.47325201]
[1750862700884,15.82954355,145.9,145.86,6.47325201]
[1750862701080,8.97534891,145.89,145.85,13.329261]
[1750862701270,8.97534891,145.89,145.81,34.1948]
[1750862701271,8.97534891,145.89,145.84,13.32989735]
[1750862701584,6.47325201,145.89,145.84,13.32989735]
[1750862702084,6.47325201,145.89,145.85,6.47325201]
[1750862702265,6.47325201,145.89,145.85,13.32928871]
[1750862702466,13.32744665,145.9,145.85,13.32928871]
[1750862703192,6.47325201,145.89,145.85,13.32928871]
[1750862703370,6.47325201,145.89,145.85,6.47325201]
[1750862703579,6.47325201,145.89,145.84,13.32989386]
[1750862704200,6.47325201,145.85,145.77,6.2266]
[1750862704393,6.47325201,145.82,145.78,6.85965152]
[1750862704703,26.0,145.85,145.78,13.33290353]
[1750862704704,6.47325201,145.83,145.78,13.33290353]
[1750862705067,21.15328036,145.84,145.73,6.3484]
[1750862705288,6.47325201,145.77,145.72,8.07125201]
[1750862705587,6.47325201,145.77,145.72,34.07125201]
[1750862705961,6.47325201,145.74,145.72,1.598]
[1750862706165,6.47325201,145.74,145.7,6.47325201]
[1750862706397,6.47325201,145.74,145.7,6.86330262]
[1750862706565,6.86062914,145.76,145.69,6.86375261]
[1750862706761,13.33388115,145.76,145.69,6.86375261]
[1750862706962,6.47325201,145.71,145.66,6.47325201]
[1750862707186,18.64964886,145.74,145.67,6.86483146]
[1750862707365,6.47325201,145.69,145.67,6.86483146]
[1750862707965,6.47325201,145.68,145.66,6.86514789]
[1750862708164,6.47325201,145.68,145.64,6.86624553]
[1750862708369,18.64964886,145.72,145.64,6.86624553]
[1750862708566,10.79109719,145.68,145.64,6.86624553]
[1750862709166,44.64964886,145.72,145.64,34.82295656]
[1750862709384,10.79109719,145.68,145.64,34.82295656]
[1750862709583,44.64964886,145.72,145.64,6.86624553]
[1750862709584,10.79109719,145.67,145.64,6.86624553]
[1750862709987,44.64964886,145.72,145.65,10.79109719]
[1750862710295,14.44170035,145.74,145.69,6.86388907]
[1750862710296,10.79109719,145.73,145.69,6.86388907]
[1750862710500,18.37109719,145.74,145.69,6.86388907]
[1750862710682,13.25984694,145.79,145.69,6.86388907]
[1750862710683,10.79109719,145.76,145.72,10.79109719]
[1750862711191,10.79109719,145.78,145.73,10.79109719]
[1750862711394,10.79109719,145.78,145.74,10.79109719]
[1750862711578,26.0,145.79,145.75,10.79109719]
[1750862711911,1.6377,145.87,145.78,10.79109719]
[1750862712082,10.79109719,145.85,145.76,18.64964886]
[1750862712397,10.79109719,145.84,145.79,17.6502782]
[1750862712583,10.79109719,145.83,145.79,6.85918101]
[1750862712769,32.85614642,145.86,145.79,6.85918101]
[1750862712770,10.79109719,145.82,145.79,6.85918101]
[1750862713165,18.64964886,145.87,145.81,10.79109719]
[1750862713385,10.79109719,145.85,145.81,10.79109719]
[1750862713597,26.0,145.78,145.64,42.20802488]
[1750862713769,18.64964886,145.77,145.68,10.79109719]
[1750862713969,18.64964886,145.77,145.69,10.79109719]
[1750862714165,10.79109719,145.74,145.69,10.79109719]
[1750862714370,10.79109719,145.73,145.69,6.86368408]
[1750862714601,10.79109719,145.74,145.69,17.65478127]
[1750862715294,10.79109719,145.73,145.69,6.86368408]
[1750862715598,10.79109719,145.74,145.69,17.65478127]
[1750862716192,26.0,145.78,145.7,10.79109719]
[1750862716377,10.79109719,145.73,145.69,17.15972269]
[1750862716579,10.79109719,145.71,145.67,6.86483146]
[1750862717383,26.0,145.75,145.67,6.86483146]
[1750862717384,10.79109719,145.7,145.67,6.86483146]
[1750862717701,10.79109719,145.7,145.67,24.02691013]
[1750862718685,10.79109719,145.71,145.67,24.02691013]
[1750862718885,10.79109719,145.71,145.67,34.81800732]
[1750862719884,10.79109719,145.7,145.67,24.02691013]
[1750862720999,10.79109719,145.7,145.67,6.86483146]
[1750862722100,10.79109719,145.69,145.67,6.86483146]
[1750862722298,10.79109719,145.68,145.67,6.86483146]
[1750862722505,10.79109719,145.69,145.67,6.86483146]
[1750862723804,10.79109719,145.69,145.65,10.79109719]
[1750862723997,154.66184171,145.74,145.65,10.79109719]
[1750862724305,10.79109719,145.72,145.67,10.79109719]
[1750862724507,147.8,145.74,145.69,10.79109719]
[1750862724686,147.8,145.76,145.69,10.79109719]
[1750862724885,10.79109719,145.74,145.69,10.79109719]
[1750862725892,10.79109719,145.75,145.71,6.86294694]
[1750862726810,173.8,145.76,145.71,6.86294694]
[1750862726811,158.59109719,145.76,145.72,10.79109719]
[1750862727382,158.59109719,145.76,145.71,24.02031431]
[1750862727690,10.79109719,145.75,145.71,34.8114115]
[1750862727996,158.59109719,145.76,145.71,34.8114115]
[1750862728197,158.59109719,145.76,145.72,10.79109719]
[1750862728506,6.0983,145.88,145.76,18.64964886]
[1750862728681,10.79109719,145.85,145.81,10.79109719]
[1750862728882,10.79109719,145.85,145.8,10.79109719]
[1750862729087,10.79109719,145.84,145.8,10.79109719]
[1750862729306,10.79109719,145.84,145.79,10.79109719]
[1750862729512,18.64964886,145.87,145.8,10.79109719]
[1750862729688,10.79109719,145.86,145.81,10.79109719]
[1750862730006,18.64964886,145.89,145.83,10.79109719]
[1750862730207,10.79109719,145.88,145.83,10.79109719]
[1750862730395,10.79109719,145.89,145.84,10.79109719]
[1750862730905,10.79109719,145.88,145.83,10.79109719]
[1750862731416,10.79109719,145.86,145.82,6.85776985]
[1750862731797,10.79109719,145.85,145.81,6.85810549]
[1750862731984,26.0,145.87,145.79,32.85918101]
[1750862732185,10.79109719,145.85,145.8,10.79109719]
[1750862732606,10.79109719,145.84,145.8,10.79109719]
[1750862732798,26.0,145.87,145.8,10.79109719]
[1750862733113,10.79109719,145.85,145.81,10.79109719]
[1750862733707,10.79109719,145.85,145.8,10.79109719]
[1750862733894,10.79109719,145.85,145.81,6.85824017]
[1750862734203,26.0,145.87,145.81,17.64933736]
[1750862734408,10.79109719,145.85,145.81,17.64933736]
[1750862734989,10.79109719,145.85,145.81,6.85824017]
[1750862735924,10.79109719,145.86,145.83,6.85729959]
[1750862736099,10.79109719,145.84,145.8,6.85871056]
[1750862736307,10.79109719,145.85,145.8,17.64980775]
[1750862737514,10.79109719,145.84,145.8,17.64980775]
[1750862738097,10.79109719,145.85,145.81,10.79109719]
[1750862738290,173.8,145.87,145.83,10.79109719]
[1750862738502,184.59109719,145.87,145.83,10.79109719]
[1750862738698,158.59109719,145.87,145.83,10.79109719]
[1750862738898,147.8,145.87,145.83,10.79109719]
[1750862739398,147.8,145.87,145.85,6.85635927]
[1750862739595,10.79109719,145.88,145.85,6.85635927]
[1750862739821,10.79109719,145.87,145.84,6.85664292]
[1750862740331,10.79109719,145.86,145.83,6.85713047]
[1750862741625,32.85463213,145.89,145.82,10.79109719]
[1750862741920,10.79109719,145.87,145.83,10.79109719]
[1750862742596,10.79109719,145.87,145.82,10.79109719]
[1750862743428,10.79109719,145.87,145.83,17.64839678]
[1750862743595,32.85461993,145.89,145.83,17.64839678]
[1750862743798,26.0,145.89,145.83,17.64839678]
[1750862744101,172.69314886,145.92,145.88,10.79109719]
[1750862744102,158.59109719,145.92,145.88,10.79109719]
[1750862744298,158.59109719,145.92,145.83,24.00054857]
[1750862744299,147.8,145.92,145.89,10.79109719]
[1750862744499,147.8,145.96,145.91,10.79109719]
[1750862744706,158.59109719,145.96,145.92,10.79109719]
[1750862745193,10.79109719,145.95,145.91,10.79109719]
[1750862745391,10.79109719,145.95,145.92,6.85307017]
[1750862746202,147.8,145.96,145.92,6.85307017]
[1750862746398,10.79109719,145.95,145.92,6.85307017]
[1750862746907,10.79109719,145.94,145.88,43.1364956]
[1750862747108,10.79109719,145.93,145.89,6.8544794]
[1750862747316,10.79109719,145.92,145.89,6.8544794]
[1750862747500,10.79109719,145.93,145.88,43.64604646]
[1750862747821,10.79109719,145.94,145.89,10.79109719]
[1750862748324,10.79109719,145.93,145.89,10.79109719]
[1750862748822,10.79109719,145.91,145.86,6.8558892]
[1750862749021,10.79109719,145.93,145.88,10.79109719]
[1750862749202,147.8,145.94,145.86,49.99561222]
[1750862749397,44.64964886,145.98,145.92,17.64416736]
[1750862749398,147.8,145.97,145.92,17.64416736]
[1750862749598,147.8,145.97,145.94,10.79109719]
[1750862750612,147.8,145.97,145.92,23.9857456]
[1750862750809,158.59109719,145.97,145.93,10.79109719]
[1750862751008,147.8,145.97,145.93,10.79109719]
[1750862751217,147.8,145.97,145.94,10.79109719]
[1750862751625,147.8,145.97,145.95,6.85166152]
[1750862751800,158.59109719,145.97,145.93,6.85260056]
[1750862752117,158.59109719,145.97,145.93,17.64369775]
[1750862752345,147.8,145.97,145.93,17.64369775]
[1750862752506,147.8,145.97,145.95,10.79109719]
[1750862753138,26.0,146.0,145.95,10.79109719]
[1750862753296,10.79109719,146.01,145.97,10.79109719]
[1750862753497,10.79109719,146.03,145.98,10.79109719]
[1750862753720,154.64666116,146.06,145.99,6.84978423]
[1750862753899,154.64666116,146.06,145.99,17.64088142]
[1750862754107,10.79109719,146.03,145.99,17.64088142]
[1750862754314,180.64666116,146.06,145.99,17.64088142]
[1750862754513,180.64666116,146.06,146.0,10.79109719]
[1750862754712,10.79109719,146.03,145.99,17.64088142]
[1750862754909,10.79109719,146.03,145.98,10.79109719]
[1750862755319,173.8,146.06,145.99,10.79109719]
[1750862755516,10.79109719,146.04,146.0,10.79109719]
[1750862755822,6.84612249,146.07,146.0,10.79109719]
[1750862756028,26.0,146.06,146.0,10.79109719]
[1750862756325,26.0,146.06,146.01,10.79109719]
[1750862756529,10.79109719,146.06,146.01,10.79109719]
[1750862756729,40.28522809,146.09,146.02,10.79109719]
[1750862756909,40.28522809,146.09,146.03,6.84790796]
[1750862757105,40.28522809,146.09,146.03,17.63900515]
[1750862757312,6.84322178,146.13,146.06,10.79109719]
[1750862757512,10.79109719,146.1,146.06,10.79109719]
[1750862757734,1.258992,146.14,146.04,6.5998]
[1750862757965,1.258992,146.14,146.12,10.79109719]
[1750862758320,1.258992,146.14,146.13,10.79109719]
[1750862758839,1.258992,146.14,146.1,6.84462696]
[1750862759020,12.05008919,146.14,146.1,6.84462696]
[1750862759227,1.258992,146.14,146.1,6.84462696]
[1750862759727,1.258992,146.14,146.11,10.79109719]
[1750862759932,1.258992,146.14,146.13,10.79109719]
[1750862760534,1.258992,146.14,146.1,23.95619437]
[1750862760841,1.258992,146.14,146.13,10.79109719]
[1750862761147,1.258992,146.14,146.13,17.63431897]
[1750862762130,1.258992,146.14,146.13,43.63431897]
[1750862762517,6.83713934,146.26,146.13,87.4251223]
[1750862762850,6.83854202,146.23,146.18,10.79109719]
[1750862763025,10.79109719,146.21,146.13,34.0331]
[1750862763227,18.64964886,146.22,146.13,26.0]
[1750862763432,6.83854202,146.23,146.16,10.79109719]
[1750862763634,6.8366719,146.27,146.19,10.79109719]
[1750862763940,10.79109719,146.23,146.15,18.64964886]
[1750862764139,26.0,146.24,146.14,42.59891158]
[1750862764140,26.0,146.24,146.18,10.79109719]
[1750862764314,26.0,146.24,146.14,23.94926272]
[1750862764315,6.1311,146.36,146.22,26.0]
[1750862764518,6.83293474,146.35,146.23,26.0]
[1750862764719,6.83293474,146.35,146.28,10.79109719]
[1750862765028,10.79109719,146.34,146.28,6.8359356]
[1750862765332,26.0,146.34,146.3,10.79109719]
[1750862765539,10.79109719,146.34,146.24,0.68380743]
[1750862765723,31.8720763,146.37,146.26,18.64964886]
[1750862766042,26.0,146.34,146.25,6.83760683]
[1750862766342,26.0,146.34,146.24,6.83800027]
[1750862766561,15.22771092,146.25,146.18,6.8408811]
[1750862766842,15.22771092,146.23,146.14,58.16340495]
[1750862767056,6.83819661,146.24,146.15,30.0]
[1750862767214,15.22771092,146.19,146.15,30.0]
[1750862767420,15.22771092,146.19,146.16,0.5]
[1750862767621,26.0,146.21,146.16,0.5]
[1750862767821,15.22771092,146.19,146.16,0.5]
[1750862768021,26.0,146.21,146.16,0.5]
[1750862768330,15.22771092,146.19,146.16,0.5]
[1750862768520,15.22771092,146.17,146.16,0.5]
[1750862768928,26.0,146.16,146.1,6.84459965]
[1750862769143,26.0,146.18,146.15,15.22771092]
[1750862769540,15.22771092,146.2,146.15,15.22771092]
[1750862769729,15.22771092,146.2,146.11,18.64964886]
[1750862769928,26.0,146.21,146.11,44.64964886]
[1750862770117,15.22771092,146.21,146.16,15.22771092]
[1750862770326,32.83865314,146.23,146.14,26.0]
[1750862770525,15.22771092,146.19,146.15,6.84228532]
[1750862770826,15.22771092,146.21,146.16,15.22771092]
[1750862771031,15.22771092,146.2,146.15,22.06999624]
[1750862771237,32.83860783,146.23,146.15,22.06999624]
[1750862771439,15.22771092,146.2,146.16,15.22771092]
[1750862771640,26.0,146.23,146.17,15.22771092]
[1750862771834,15.22771092,146.22,146.18,15.22771092]
[1750862772221,15.22771092,146.22,146.17,15.22771092]
[1750862772631,15.22771092,146.22,146.18,6.8408811]
[1750862772824,15.22771092,146.21,146.18,6.8408811]
[1750862773225,15.22771092,146.2,146.16,22.0695281]
[1750862774355,15.22771092,146.21,146.17,15.22771092]
[1750862774644,15.22771092,146.2,146.15,6.84228532]
[1750862774846,15.22771092,146.18,146.15,6.84228532]
[1750862775051,15.22771092,146.19,146.15,22.06999624]
[1750862775225,15.22771092,146.2,146.16,15.22771092]
[1750862775632,15.22771092,146.19,146.15,22.06999624]
[1750862776327,8.42,146.28,146.18,26.0]
[1750862776528,15.22771092,146.25,146.21,15.22771092]
[1750862776726,18.64964886,146.27,146.21,15.22771092]
[1750862776727,44.64964886,146.27,146.21,15.22771092]
[1750862776944,15.22771092,146.24,146.18,43.10195603]
[1750862777160,15.22771092,146.24,146.2,15.22771092]
[1750862778056,15.22771092,146.25,146.21,22.06718838]
[1750862778541,15.22771092,146.25,146.21,6.83947746]
[1750862778739,15.22771092,146.25,146.21,22.06718838]
[1750862779459,15.22771092,146.26,146.21,22.06718838]
[1750862779664,15.22771092,146.25,146.21,22.06718838]
[1750862779835,15.22771092,146.25,146.21,6.83947746]
[1750862780036,18.64964886,146.26,146.21,6.83947746]
[1750862780354,18.64964886,146.3,146.25,15.22771092]
[1750862780564,6.18,146.37,146.26,6.6208]
[1750862780747,6.18,146.37,146.3,15.22771092]
[1750862781073,26.0,146.34,146.3,15.22771092]
[1750862781225,13.01226185,146.37,146.26,6.6208]
[1750862781424,15.22771092,146.34,146.29,15.22771092]
[1750862781645,41.22771092,146.34,146.26,6.6208]
[1750862781845,15.22771092,146.33,146.28,15.22771092]
[1750862782032,18.64964886,146.35,146.28,15.22771092]
[1750862782229,26.0,146.34,146.27,6.8366719]
[1750862782433,6.8309555,146.4,146.3,26.0]
[1750862782744,15.22771092,146.38,146.33,15.22771092]
[1750862783060,44.64964886,146.4,146.3,26.0]
[1750862783233,15.22771092,146.37,146.3,26.0]
[1750862783433,15.22771092,146.37,146.33,15.22771092]
[1750862783654,15.22771092,146.37,146.33,22.06135427]
[1750862783860,51.48050667,146.4,146.33,22.06135427]
[1750862784167,44.64964886,146.4,146.33,6.83364335]
[1750862784465,15.22771092,146.37,146.33,22.06135427]
[1750862784667,15.22771092,146.35,146.29,6.83573723]
[1750862784962,15.22771092,146.3,146.22,25.02534886]
[1750862785170,26.0,146.33,146.22,25.02534886]
[1750862785171,18.64964886,146.33,146.23,23.93489707]
[1750862785345,18.64964886,146.33,146.25,15.22771092]
[1750862785543,15.22771092,146.29,146.23,23.93489707]
[1750862785860,15.22771092,146.29,146.2,20.16884886]
[1750862785861,41.22771092,146.3,146.21,15.22771092]
[1750862786068,15.22771092,146.26,146.2,17.09911642]
[1750862786362,26.0,146.29,146.23,15.22771092]
[1750862786568,41.22771092,146.29,146.24,15.22771092]
[1750862786736,26.0,146.29,146.24,15.22771092]
[1750862786940,15.22771092,146.29,146.25,15.22771092]
[1750862787150,41.22771092,146.3,146.26,15.22771092]
[1750862787352,15.22771092,146.31,146.27,15.22771092]
[1750862787554,15.22771092,146.3,146.23,26.0]
[1750862787866,18.64964886,146.32,146.24,22.06578531]
[1750862788054,15.22771092,146.3,146.25,15.22771092]
[1750862788359,15.22771092,146.31,146.27,15.22771092]
[1750862788543,26.0,146.34,146.26,15.22771092]
[1750862788733,18.64964886,146.36,146.3,15.22771092]
[1750862788938,15.22771092,146.35,146.26,26.0]
[1750862789147,15.22771092,146.34,146.3,15.22771092]
[1750862789353,15.22771092,146.35,146.3,15.22771092]
[1750862789760,35.9,146.37,146.32,6.8343357]
[1750862790068,6.82966807,146.42,146.35,15.22771092]
[1750862790262,8.26071075,146.43,146.35,26.0]
[1750862790454,8.26071075,146.43,146.37,15.22771092]
[1750862790455,15.22771092,146.41,146.37,15.22771092]
[1750862790649,1.431361,146.43,146.38,15.22771092]
[1750862790860,16.65907192,146.43,146.35,26.0]
[1750862791041,1.431361,146.43,146.37,15.22771092]
[1750862791444,15.22771092,146.42,146.37,15.22771092]
[1750862791766,1.431361,146.43,146.37,15.22771092]
[1750862791973,15.22771092,146.38,146.32,18.60406875]
[1750862792148,44.64964886,146.42,146.33,32.83386865]
[1750862792348,44.64964886,146.42,146.36,15.22771092]
[1750862792746,1.431361,146.43,146.33,49.91854028]
[1750862792964,1.431361,146.43,146.39,15.22771092]
[1750862793171,1.431361,146.43,146.35,6.5184]
[1750862793172,15.22771092,146.42,146.38,15.22771092]
[1750862793543,15.22771092,146.41,146.37,15.22771092]
[1750862793739,25.47958431,146.42,146.36,6.83233877]
[1750862793964,15.22771092,146.39,146.36,6.83233877]
[1750862794174,25.47958431,146.42,146.36,6.83233877]
[1750862794175,15.22771092,146.4,146.36,6.83233877]
[1750862794464,15.22771092,146.4,146.36,22.06004969]
[1750862794656,18.64964886,146.42,146.36,22.06004969]
[1750862794971,15.22771092,146.4,146.36,6.83233877]
[1750862795874,25.47948544,146.42,146.36,6.83233877]
[1750862796046,15.22771092,146.39,146.33,6.83386865]
[1750862796251,15.22771092,146.38,146.33,22.06157957]
[1750862796448,6.83013455,146.41,146.32,6.83421419]
[1750862796647,15.22771092,146.36,146.32,6.83421419]
[1750862797064,6.83013455,146.41,146.32,6.83421419]
[1750862797276,18.64964886,146.39,146.32,6.83421419]
[1750862797456,15.22771092,146.34,146.29,6.83573723]
[1750862797662,15.22771092,146.33,146.29,22.06344815]
[1750862798378,15.22771092,146.34,146.29,6.83573723]
[1750862798574,18.64964886,146.37,146.29,6.83573723]
[1750862798879,15.22771092,146.35,146.3,15.22771092]
[1750862800485,15.22771092,146.35,146.29,23.92508031]
[1750862800661,15.22771092,146.35,146.3,15.22771092]
[1750862800862,6.83206066,146.37,146.29,23.92508031]
[1750862801068,15.22771092,146.35,146.3,15.22771092]
[1750862801661,6.83169455,146.38,146.31,15.22771092]
[1750862801866,6.83169455,146.38,146.3,15.22771092]
[1750862802069,6.83169455,146.38,146.29,23.92508031]
[1750862802070,25.48086299,146.39,146.32,15.22771092]
[1750862802373,15.22771092,146.37,146.33,6.83386865]
[1750862802557,15.22771092,146.36,146.33,6.83386865]
[1750862802874,36.151361,146.43,146.32,15.22771092]
[1750862802875,1.431361,146.43,146.35,15.22771092]
[1750862803076,23.48827737,146.43,146.35,26.0]
[1750862803374,8.26056645,146.43,146.35,26.0]
[1750862803578,18.64964886,146.42,146.35,26.0]
[1750862803784,18.64964886,146.42,146.36,15.22771092]
[1750862804077,15.22771092,146.41,146.36,15.22771092]
[1750862804258,1.431361,146.43,146.37,22.05971201]
[1750862804464,27.431361,146.43,146.37,22.05971201]
[1750862804684,1.431361,146.43,146.37,6.83200109]
[1750862804982,15.22771092,146.4,146.35,6.83293474]
[1750862805195,15.22771092,146.4,146.36,15.22771092]
[1750862805398,8.26066725,146.43,146.35,6.83293474]
[1750862805694,15.22771092,146.4,146.36,15.22771092]
[1750862806062,15.22771092,146.41,146.36,22.05990489]
[1750862806271,1.431361,146.43,146.4,15.22771092]
[1750862806761,1.431361,146.43,146.39,15.22771092]
[1750862807379,1.431361,146.43,146.36,31.49086368]
[1750862807380,1.431361,146.43,146.4,15.22771092]
[1750862807886,1.431361,146.43,146.36,31.49086368]
[1750862807887,16.65907192,146.43,146.38,15.22771092]
[1750862808080,15.22771092,146.41,146.33,26.0]
[1750862808257,8.26056853,146.43,146.34,6.83340166]
[1750862808575,8.26056853,146.43,146.34,22.06111258]
[1750862808774,18.64964886,146.42,146.34,6.83340166]
[1750862808981,18.64964886,146.42,146.34,22.06111258]
[1750862809286,1.431361,146.43,146.34,6.83340166]
[1750862809581,1.431361,146.43,146.39,15.22771092]
[1750862810076,1.431361,146.43,146.41,6.83013455]
[1750862811065,1.431361,146.43,146.4,15.22771092]
[1750862811466,1.431361,146.43,146.39,6.83106769]
[1750862811866,1.431361,146.43,146.4,15.22771092]
[1750862812066,1.431361,146.43,146.39,6.83106769]
[1750862812262,1.431361,146.43,146.38,23.910146]
[1750862812467,1.431361,146.43,146.41,10.67823952]
[1750862812669,1.431361,146.43,146.42,10.67823952]
[1750862812883,1.431361,146.43,146.38,24.59329943]
[1750862813072,1.431361,146.43,146.42,10.67823952]
[1750862813386,11.3,146.54,146.42,14.15405728]
[1750862813568,18.12407993,146.54,146.42,29.47581776]
[1750862813761,36.77372879,146.54,146.42,26.0]
[1750862813964,36.77372879,146.54,146.45,10.67823952]
[1750862814161,10.67823952,146.5,146.46,17.50571499]
[1750862814378,62.77372879,146.54,146.44,10.67823952]
[1750862814581,10.67823952,146.49,146.45,10.67823952]
[1750862814765,0.67823952,146.49,146.45,10.67823952]
[1750862815078,18.64964886,146.53,146.43,6.82920166]
[1750862815259,18.64964886,146.53,146.45,10.67823952]
[1750862815459,11.3,146.54,146.43,23.90220582]
[1750862815782,10.67823952,146.53,146.43,23.90220582]
[1750862815977,10.67823952,146.53,146.48,10.67823952]
[1750862816193,18.12412852,146.54,146.43,23.90220582]
[1750862816392,10.67823952,146.51,146.47,10.67823952]
[1750862816575,18.12412852,146.54,146.47,10.67823952]
[1750862816765,11.3,146.54,146.49,10.67823952]